Cogmind - Beta 12 @@@ ROGUE MODE // 2023.04.27 @ 21:08:48 Player: Mr Goldstein Result: Destroyed by G-47 Trooper with Particle Gun Performance ------------- Evolutions (2) 1000 Regions Visited (3) 600 Robots Destroyed (0) 0 Value Destroyed (0) 0 Prototype IDs (1) 20 Alien Tech Used (0) 0 Bonus (470) 470 TOTAL SCORE: 2090 Bonus ------- Pacifist 470 Cogmind --------- Core Integrity 0/550 Matter 229/300 Energy 94/100 System Corruption 0% Temperature Cool (21) Movement Flying (35) Location -8/Materials Parts ------- > --- POWER (1) -------- (None) > --- PROPULSION (6) --- Improved VTOL Module > --- UTILITY (2) ------ (None) > --- WEAPON (2) ------- (None) > --- INVENTORY (5) ---- Deuterium Engine Peak State ------------ > --- POWER ------------ (None) > --- PROPULSION ------- Improved VTOL Module > --- UTILITY ---------- (None) > --- WEAPON ----------- (None) > --- INVENTORY -------- (None) [Rating: 4] Favorites ----------- Power None Propulsion Improved VTOL Module Flight Unit Improved VTOL Module Utility None Weapon None Build | -11 -10 -9 -8 ------- Run | Jun Mat Mat Mat Slots Evolved 4 | . . 2 2 Power . | . . . . Propulsion 4 | . . 2 2 Utility . | . . . . Weapon . | . . . . Parts Attached 2 | . . . 2 Power . | . . . . Engine . | . . . . Core . | . . . . Reactor . | . . . . Propulsion 2 | . . . 2 Treads . | . . . . Leg . | . . . . Wheel . | . . . . Hover . | . . . . Flight 2 | . . . 2 Utility . | . . . . Device . | . . . . Storage . | . . . . Processor . | . . . . Hackware . | . . . . Protection . | . . . . Artifact . | . . . . Weapon . | . . . . Energy Gun . | . . . . Energy Cannon . | . . . . Ballistic Gun . | . . . . Ballistic Cannon . | . . . . Launcher . | . . . . Special Weapon . | . . . . Impact Weapon . | . . . . Slashing Weapon . | . . . . Piercing Weapon . | . . . . Special Melee Weapon . | . . . . Unidentified Prototypes 1 | . . . 1 Parts Lost . | . . . . Power . | . . . . Propulsion . | . . . . Utility . | . . . . Weapon . | . . . . Highest Loss Streak . | . . . . To Critical Strikes . | . . . . Average Slot Usage (%) . | . . . . Naked Turns 178 | . 44 66 68 Heaviest Build . | . . . . Greatest Support 5 | 3 3 3 5 Greatest Overweight (x) . | . . . . Average Overweight (x) . | . . . . Largest Inventory Capacity 5 | 5 5 5 5 Average Capacity 5 | 5 5 5 5 Most Carried 2 | . . . 2 Average Carried . | . . . 1 Final Capacity 5 | 5 5 5 5 Final Carried 1 | . . . 1 Class Distribution -------------------- 100% | Mutant Dominant Class ---------------- Mutant | -10/Materials Mutant | -9/Materials Mutant | -8/Materials Resources | -11 -10 -9 -8 ----------- Run | Jun Mat Mat Mat Matter Collected 91 | 91 . . . Remotely . | . . . . Salvage Created . | . . . . Parts . | . . . . Haulers Intercepted . | . . . . Recyclers Shooed . | . . . . Parts Field Recycled . | . . . . Retrieved Matter . | . . . . Parts Self-Destructed . | . . . . Prevented . | . . . . Kills | -11 -10 -9 -8 ------- Run | Jun Mat Mat Mat Combat Hostiles Destroyed . | . . . . Classes Destroyed . | . . . . Best Kill Streak . | . . . . Combat Bots Only . | . . . . Max Kills in Single Turn . | . . . . Gunslinging . | . . . . Exploded . | . . . . Melee . | . . . . Uniques/NPCs Destroyed . | . . . . Combat | -11 -10 -9 -8 -------- Run | Jun Mat Mat Mat Damage Taken 910 | . 109 197 604 Core 862 | . 109 197 556 Absorbed by Shields . | . . . . Core Remaining (%) 68 | 100 56 50 . Volleys Fired . | . . . . Largest . | . . . . Hottest . | . . . . Shots Fired . | . . . . Gun . | . . . . Cannon . | . . . . Launcher . | . . . . Special . | . . . . Kinetic . | . . . . Thermal . | . . . . Explosive . | . . . . Electromagnetic . | . . . . Robot Hit Streak . | . . . . Robot Miss Streak . | . . . . Penetration Max . | . . . . Secondary Targets . | . . . . Shots Hit Robots . | . . . . Core Hits 2 | . . . 2 Critical Kills . | . . . . Critical Parts Destroyed . | . . . . Critical Strikes . | . . . . Melee Attacks . | . . . . Impact . | . . . . Slashing . | . . . . Piercing . | . . . . Sneak Attacks . | . . . . Combat Hostiles . | . . . . Follow-up Attacks . | . . . . Damage Inflicted 89 | . . 33 56 Guns . | . . . . Cannons . | . . . . Explosions . | . . . . Melee . | . . . . Ramming 89 | . . 33 56 Kinetic . | . . . . Thermal . | . . . . Explosive . | . . . . Electromagnetic . | . . . . Impact . | . . . . Slashing . | . . . . Piercing . | . . . . Highest Corruption 2 | . . 2 . Average Corruption 2 | . . 2 . Corruption Purged . | . . . . Corruption Blocked . | . . . . Overload Shots . | . . . . Overflow Damage . | . . . . Projectiles . | . . . . Explosions . | . . . . Melee . | . . . . Knockbacks . | . . . . Impact . | . . . . Kinetic . | . . . . Secondary . | . . . . Self-Inflicted Damage 39 | . . 14 25 Shots . | . . . . Rammed 17 | . . 6 11 Targets Rammed 17 | . . 6 11 Kicked . | . . . . Crushed . | . . . . Highest Temperature . | . . . . Average Temperature . | . . . . Received Heat Transfer 216 | . . 81 135 Siege Activations . | . . . . Robots Corrupted . | . . . . Combat Hostiles . | . . . . Parts Fried . | . . . . Impact Corruptions . | . . . . Robots Melted . | . . . . Combat Hostiles . | . . . . Parts Melted . | . . . . Heat Transferred . | . . . . Parts Sabotaged . | . . . . Parts Stolen . | . . . . Parts Stripped . | . . . . Power Chain Reactions . | . . . . Missiles Intercepted . | . . . . Alert | -11 -10 -9 -8 ------- Run | Jun Mat Mat Mat Peak Influence 128 | . 75 91 128 Initial 38 | . . 31 38 Average 47 | . 19 46 71 Maximum Alert Level . | . . . . Low Security (%) 100 | 100 100 100 100 Level 1 . | . . . . Level 2 . | . . . . Level 3 . | . . . . Level 4 . | . . . . Level 5 . | . . . . High Security . | . . . . Max Security . | . . . . Squads Dispatched 2 | . . . 2 Investigation . | . . . . Extermination . | . . . . Reinforcement 2 | . . . 2 Assault . | . . . . Garrison . | . . . . Intercept . | . . . . Searches Triggered . | . . . . Construction Impeded . | . . . . Haulers Reinforced . | . . . . Active Scanning Responses . | . . . . Cargo Convoy Interrupts . | . . . . Stealth | -11 -10 -9 -8 --------- Run | Jun Mat Mat Mat Distress Signals 2 | . . 1 1 Communications Jammed . | . . . . Distress Signals . | . . . . Times Spotted 35 | . 6 11 18 Peak Tracking Total 12 | . 5 10 12 Tactical Retreats 3 | . 1 1 1 Traps | -11 -10 -9 -8 ------- Run | Jun Mat Mat Mat Traps Triggered 1 | . 1 . . Indirectly . | . . . . Trap Hack Attempts . | . . . . Triggered . | . . . . Disarmed . | . . . . Reprogrammed . | . . . . Reused . | . . . . Traps Extracted . | . . . . Installed . | . . . . Triggered . | . . . . Machines | -11 -10 -9 -8 ---------- Run | Jun Mat Mat Mat Machines Disabled . | . . . . Max in Single Turn . | . . . . Machines Repaired . | . . . . Machines Sabotaged . | . . . . Overloaded Fab Kills . | . . . . Hacking | -11 -10 -9 -8 --------- Run | Jun Mat Mat Mat Machines Accessed . | . . . . Terminals . | . . . . Fabricators . | . . . . Repair Stations . | . . . . Recycling Units . | . . . . Scanalyzers . | . . . . Garrison Access . | . . . . Total Hacks . | . . . . Successful . | . . . . Failed . | . . . . Catastrophic . | . . . . Database Lockouts . | . . . . Manual . | . . . . Terminals . | . . . . Fabricators . | . . . . Repair Stations . | . . . . Recycling Units . | . . . . Scanalyzers . | . . . . Garrison Access . | . . . . Terminal Hacks . | . . . . Fabricator Hacks . | . . . . Repair Station Hacks . | . . . . Recycling Unit Hacks . | . . . . Scanalyzer . | . . . . Garrison Access Hacks . | . . . . Unauthorized Hacks . | . . . . Terminals . | . . . . Fabricators . | . . . . Repair Stations . | . . . . Recycling Units . | . . . . Scanalyzers . | . . . . Garrison Access . | . . . . Data Cores Recovered . | . . . . Used . | . . . . Hacking Detections . | . . . . Full Trace Events . | . . . . Feedback Events . | . . . . Feedback Blocked . | . . . . Robot Schematics Acquired . | . . . . Robots Built . | . . . . Authchips . | . . . . Time . | . . . . Total Robot Build Rating . | . . . . Part Schematics Acquired . | . . . . Parts Built . | . . . . Authchips . | . . . . Time . | . . . . Total Part Build Rating . | . . . . Parts Repaired . | . . . . Time . | . . . . Parts Recycled . | . . . . Recycled Matter . | . . . . Retrieved Matter . | . . . . Retrieved Components . | . . . . Parts Scanalyzed . | . . . . Part Schematics Acquired . | . . . . Parts Damaged . | . . . . Bothacking | -11 -10 -9 -8 ------------ Run | Jun Mat Mat Mat Used RIF Installer . | . . . . Robots Hacked . | . . . . Non-combat . | . . . . Combat . | . . . . Robot Hacks Applied . | . . . . Relay Couplers Released . | . . . . Fabnet Peak Effective % . | . . . . Robots Rewired . | . . . . Allies Hacked . | . . . . Hacks Repelled . | . . . . Allies | -11 -10 -9 -8 -------- Run | Jun Mat Mat Mat Total Allies . | . . . . Largest Group . | . . . . Highest-Rated Group . | . . . . Highest-Rated Ally . | . . . . Total Orders . | . . . . Ally Attacks . | . . . . Total Damage . | . . . . Kills . | . . . . Allies Corrupted . | . . . . Allies Melted . | . . . . Intel | -11 -10 -9 -8 ------- Run | Jun Mat Mat Mat Robot Analysis Total . | . . . . Derelict Logs Recovered . | . . . . Drone Launches . | . . . . Drone Recoveries . | . . . . Exploration | -11 -10 -9 -8 ------------- Run | Jun Mat Mat Mat Turns Passed 195 | 9 44 66 76 Spaces Moved 352 | 18 88 119 127 Core 336 | 18 88 119 111 Treads . | . . . . Legs . | . . . . Wheels . | . . . . Hover . | . . . . Flight 16 | . . . 16 Fastest Speed 35 | 50 50 50 35 Average Speed 49 | 50 50 50 48 Slowest Speed 50 | 50 50 50 50 Overloaded Moves . | . . . . Propulsion Burnouts . | . . . . Robots Hopped 1 | . . . 1 Cave-ins Triggered . | . . . . Exploration Rate (%) 20 | 3 33 23 24 Regions Visited 3 Branch Regions . Pre-discovered Areas . | . . . . Known Exits Taken . | . . . . Unknown Exits Taken 3 | 1 1 1 . Scrap Searched . | . . . . Spaces Dug . | . . . . Terrain Destroyed . | . . . . Melee . | . . . . Projectile . | . . . . AOE . | . . . . Terrain Rammed . | . . . . Walls Destroyed . | . . . . Machines Disabled . | . . . . Actions | -11 -10 -9 -8 --------- Run | Jun Mat Mat Mat Total 369 | 17 87 124 141 Wait . | . . . . Move 347 | 17 87 118 125 Hop 1 | . . . 1 Pick Up 1 | . . . 1 Fast Attach 1 | . . . 1 Attach 1 | . . . 1 Detach 1 | . . . 1 Swap . | . . . . Drop . | . . . . Fire . | . . . . Melee . | . . . . Ram 17 | . . 6 11 Kick . | . . . . Crush . | . . . . Escape Stasis . | . . . . Rewire . | . . . . Trap . | . . . . Miscellaneous . | . . . . Route ------- -11/Junkyard -10/Materials (discovered 2 exits: [*Mat] / [*Min]) -9/Materials -8/Materials (discovered 1 exit: [*Fac]) History --------- Turn | Location | Event 2 | -11/Junkyard | Discovered new exit (range 16) 10 | -11/Junkyard | Entered Materials 32 | -10/Materials | Discovered new exit (range 12) 47 | -10/Materials | Discovered new exit (range 15) 54 | -10/Materials | Entered another Materials area 54 | -9/Materials | Evolved 2 slots: Propulsion x2 113 | -9/Materials | Discovered new exit (range 14) 120 | -9/Materials | Entered another Materials area 120 | -8/Materials | Evolved 2 slots: Propulsion x2 189 | -8/Materials | Core integrity fell below 50% 192 | -8/Materials | Core integrity fell below 20% 192 | -8/Materials | Discovered new exit (range 15) 196 | -8/Materials | Destroyed by G-47 Trooper with Particle Gun Last Messages --------------- 00178_ W-25 Informer sends out distress signal. 00180_ Slammed into W-25 Informer. 00181_ Destabilizing: Core damaged (-27). 00182_ Slammed into W-25 Informer. 00183_ Slammed into R-06 Scavenger. 00184_ Slammed into G-47 Trooper. 00184_ Destabilizing: Core damaged (-5). 00185_ Slammed into G-47 Trooper. 00186_ ALERT: Hostiles spotted, dispatching reinforcements to Terminal M005. 00186_ Slammed into G-47 Trooper. 00187_ Destabilizing: Core damaged (-5). 00188_ Slammed into G-47 Trooper. 00188_ Destabilizing: Core damaged (-27). 00190_ Knocked back. 00192_ EXIT=FOUND 00192_ R-06 Scavenger suffers critical hit (Blast). 00192_ R-06 Scavenger destroyed. 00194_ Penetrated by Slug. 00194_ Knocked back. Map ----- +----------------------------------------------------+ | ?????????? # #???????????????????? | | ???????????/ +???????????????????? | | ???????????# #??????#+#??????????? | | ???????????# #??????# #??????????? | | ???????????# #??????# #??????????? | | ???????##### #??????# #??????????? | | ???????? #??????# #??????????? | | ???????????# ######## ############ | | ???????????# | | ???????????# "#################### | | ???????????# ##?????? #?????????? | | ??????????## H##???? #?????????? | | ??????????# #??] #?????????? | | ??????????# %= # ]] """#?????????? | | ??????????# + ]! """#?????????? | | ??????????# = # """#?????????? | | ??????????# % #?? """??????????? | | ??????????## %##???? #?????????? | | ???????????# #??????? #?????????? | | ???????????# #?????????#?????????? | | ????#####??# #???????????????????? | | ??# """ ?# #???????????????????? | | ??# "R" ?# #???????????????????? | | ??# " " #g #???????????????????? | | ??# # g #???????????????????? | | ??# @ #???????????????????? | | ??# """"k#g #???????????????????? | | ??? """" # +???????????????????? | | ????? """"?# #???????????????????? | | ????? ?# < #???????????????????? | | ?????####??# #???????????????????? | | ???????????#####???????????????????? | | ???????????????????????????????????? | | ???????????????????????????????????? | | ???????????????????????????????????? | | ???????????????????????????????????? | | ???????????????????????????????????? | | ???????????????????????????????????? | | ???????????????????????????????????? | | ???????????????????????????????????? | | ???????????????????????????????????? | | ???????????????????????????????????? | | | | | | | | | | | | | | | | | +----------------------------------------------------+ Best States ------------- Heat Dissipation 31 Energy Generation 5 Energy Capacity 100 Matter Stores 239 Matter Capacity 300 Sight Range 16 Terrain Scan Density 10 Evasion (%) 50 Item Schematics ----------------- None Robot Schematics ------------------ None Fabricated ------------ Nothing Alien Tech Used ----------------- None Achievements -------------- None Challenges ------------ None Game ------ Seed TransportTransportBlaster Manual? 0 Play Time 00:03:16 Cumulative 153.1 hours Start 2023.04.27 @ 21:06:33 End 2023.04.27 @ 21:08:48 Sessions 1 Manual Loads 0 Difficulty Rogue Special Mode None Game No. 452 Rogue 452 Adventurer 0 Explorer 0 Win Type - Total 7 Types 6/0/0/1/0/0/0/0/0 Lore% 66 Gallery% 71 Achievement% 61 Wizard Run 0 Options --------- ASCII 0 Keyboard 0 Movement Numpad Keybinds 0 Fullscreen 1 Font 16/SmallcapsGlow Map View 75x55 Tactical HUD 1 Map Filters NONE Filters NONE Steam 1 RUN: 96d18edf-ce07-4178-8711-63f12d4d6424